Cogmind - Beta 12 @@@ ROGUE MODE // 2023.06.25 @ 19:45:51 Player: ZOT Result: Destroyed by D-53 Grenadier with Mini Grenade Launcher Performance ------------- Evolutions (1) 500 Regions Visited (3) 600 Robots Destroyed (9) 45 Value Destroyed (183) 183 Prototype IDs (0) 0 Alien Tech Used (0) 0 Bonus (0) 0 TOTAL SCORE: 1328 Bonus ------- None Cogmind --------- Core Integrity 0/400 Matter 183/300 Energy 99/100 System Corruption 6% Temperature Cool (0) Movement Core (100) Ox1 Location -9/Mines Parts ------- > --- POWER (1) -------- (None) > --- PROPULSION (3) --- (None) > --- UTILITY (3) ------ Small Storage Unit > --- WEAPON (2) ------- (None) > --- INVENTORY (8) ---- Ion Engine Aerolev Unit Faulty Aerolev Unit Aerolev Unit Visual Processing Unit Improved Targeting Computer Peak State ------------ > --- POWER ------------ Improved Ion Engine > --- PROPULSION ------- Wheel Wheel Compact Wheel > --- UTILITY ---------- Cooling System Improved Terrain Scanner Seismic Detector > --- WEAPON ----------- Assault Rifle Grenade Launcher > --- INVENTORY -------- Ion Engine Ion Engine Flight Unit Small Storage Unit Visual Processing Unit [Rating: 13] Favorites ----------- Power Ion Engine Engine Ion Engine Propulsion Wheel Wheel Wheel Flight Unit Flight Unit Utility Improved Terrain Scanner Device Improved Terrain Scanner Storage Small Storage Unit Weapon Assault Rifle Energy Gun Small Laser Ballistic Gun Assault Rifle Launcher Grenade Launcher Build | -11 -10 -9 -9 ------- Run | Jun Mat Mat Min Slots Evolved 2 | . . 2 . Power . | . . . . Propulsion 1 | . . 1 . Utility 1 | . . 1 . Weapon . | . . . . Parts Attached 16 | 9 2 5 . Power 2 | 1 . 1 . Engine 2 | 1 . 1 . Core . | . . . . Reactor . | . . . . Propulsion 5 | 3 . 2 . Treads . | . . . . Leg . | . . . . Wheel 4 | 3 . 1 . Hover . | . . . . Flight 1 | . . 1 . Utility 5 | 3 . 2 . Device 3 | 2 . 1 . Storage 2 | 1 . 1 . Processor . | . . . . Hackware . | . . . . Protection . | . . . . Artifact . | . . . . Weapon 4 | 2 2 . . Energy Gun 2 | 1 1 . . Energy Cannon . | . . . . Ballistic Gun 1 | 1 . . . Ballistic Cannon . | . . . . Launcher 1 | . 1 . . Special Weapon . | . . . . Impact Weapon . | . . . . Slashing Weapon . | . . . . Piercing Weapon . | . . . . Special Melee Weapon . | . . . . Unidentified Prototypes . | . . . . Parts Lost 10 | . . 3 7 Power 1 | . . . 1 Propulsion 4 | . . 1 3 Utility 3 | . . 1 2 Weapon 2 | . . 1 1 Highest Loss Streak 7 | . . 3 7 To Critical Strikes . | . . . . Average Slot Usage (%) 86 | . 94 89 41 Engine 11 | . 14 11 5 Wheel 26 | . 28 29 5 Flight 1 | . . 2 5 Device 25 | . 28 26 8 Storage 1 | . . 1 11 Energy Gun 1 | . 4 . . Ballistic Gun 11 | . 14 11 5 Launcher 5 | . 4 7 . Naked Turns . | . . . . Heaviest Build 17 | 14 12 17 17 Greatest Support 36 | 26 20 36 26 Greatest Overweight (x) 3 | . . . 3 Average Overweight (x) . | . . . . Largest Inventory Capacity 8 | 8 5 8 8 Average Capacity 5 | 6 5 5 8 Most Carried 6 | 5 5 6 6 Average Carried 4 | 1 4 4 6 Final Capacity 8 | 5 5 8 8 Final Carried 6 | 4 5 6 6 Class Distribution -------------------- 78% | Mutant 21% | Scavenger-Mutant Dominant Class ---------------- Mutant | -10/Materials Scavenger-Mutant | -9/Materials Mutant | -9/Mines Resources | -11 -10 -9 -9 ----------- Run | Jun Mat Mat Min Matter Collected 362 | 258 20 62 22 Remotely . | . . . . Salvage Created 187 | 33 20 134 . Parts 21 | 7 3 11 . Haulers Intercepted . | . . . . Recyclers Shooed . | . . . . Parts Field Recycled . | . . . . Retrieved Matter . | . . . . Parts Self-Destructed . | . . . . Prevented . | . . . . Kills | -11 -10 -9 -9 ------- Run | Jun Mat Mat Min Combat Hostiles Destroyed 6 | . . 6 . Guns 4 | . . 4 . AOE 2 | . . 2 . Classes Destroyed 5 | 1 1 3 . Tunneler 2 | 2 . . . Watcher 1 | . 1 . . Swarmer 3 | . . 3 . Grunt 2 | . . 2 . Sentry 1 | . . 1 . Best Kill Streak 4 | 2 1 4 . Combat Bots Only 4 | . . 4 . Max Kills in Single Turn 1 | 1 1 1 . Gunslinging . | . . . . Exploded 1 | . . 1 . Melee . | . . . . Uniques/NPCs Destroyed . | . . . . Combat | -11 -10 -9 -9 -------- Run | Jun Mat Mat Min Damage Taken 927 | . . 431 496 Core 419 | . . 100 319 Absorbed by Shields . | . . . . Core Remaining (%) 100 | 100 100 . . Volleys Fired 33 | 2 1 27 3 Largest 2 | 2 1 2 1 Hottest 60 | 60 20 50 20 Shots Fired 42 | 4 1 34 3 Gun 35 | 4 1 27 3 Cannon . | . . . . Launcher 7 | . . 7 . Special . | . . . . Kinetic 33 | 2 1 27 3 Thermal 2 | 2 . . . Explosive 7 | . . 7 . Electromagnetic . | . . . . Robot Hit Streak 6 | 3 4 6 . Robot Miss Streak 5 | . . 4 5 Penetration Max . | . . . . Secondary Targets . | . . . . Shots Hit Robots 24 | 3 1 20 . Core Hits 14 | 2 1 11 . Critical Kills . | . . . . Critical Parts Destroyed . | . . . . Critical Strikes . | . . . . Melee Attacks . | . . . . Impact . | . . . . Slashing . | . . . . Piercing . | . . . . Sneak Attacks . | . . . . Combat Hostiles . | . . . . Follow-up Attacks . | . . . . Damage Inflicted 404 | 35 14 355 . Guns 227 | 35 14 178 . Cannons . | . . . . Explosions 177 | . . 177 . Melee . | . . . . Ramming . | . . . . Kinetic 205 | 13 14 178 . Thermal 22 | 22 . . . Explosive 177 | . . 177 . Electromagnetic . | . . . . Impact . | . . . . Slashing . | . . . . Piercing . | . . . . Highest Corruption 6 | . . . 6 Average Corruption 6 | . . . 6 Corruption Purged . | . . . . Corruption Blocked . | . . . . Overload Shots . | . . . . Overflow Damage 5 | . . 5 . Projectiles . | . . . . Explosions 5 | . . 5 . Melee . | . . . . Knockbacks . | . . . . Impact . | . . . . Kinetic . | . . . . Secondary . | . . . . Self-Inflicted Damage 54 | . . 54 . Shots 2 | . . 2 . Rammed . | . . . . Targets Rammed . | . . . . Kicked . | . . . . Crushed . | . . . . Highest Temperature 2 | . . 2 . Average Temperature 2 | . . 2 . Received Heat Transfer 225 | . . 165 60 Siege Activations . | . . . . Robots Corrupted . | . . . . Combat Hostiles . | . . . . Parts Fried . | . . . . Impact Corruptions . | . . . . Robots Melted . | . . . . Combat Hostiles . | . . . . Parts Melted . | . . . . Heat Transferred 50 | 50 . . . Parts Sabotaged . | . . . . Parts Stolen . | . . . . Parts Stripped . | . . . . Power Chain Reactions . | . . . . Missiles Intercepted . | . . . . Alert | -11 -10 -9 -9 ------- Run | Jun Mat Mat Min Peak Influence 244 | 10 28 244 93 Initial 93 | . 6 11 93 Average 82 | 2 22 172 49 Maximum Alert Level 1 | . . 1 . Low Security (%) 84 | 100 100 63 100 Level 1 15 | . . 36 . Level 2 . | . . . . Level 3 . | . . . . Level 4 . | . . . . Level 5 . | . . . . High Security . | . . . . Max Security . | . . . . Squads Dispatched 2 | . 1 1 . Investigation 1 | . 1 . . Extermination . | . . . . Reinforcement 1 | . . 1 . Assault . | . . . . Garrison . | . . . . Intercept . | . . . . Searches Triggered . | . . . . Construction Impeded . | . . . . Haulers Reinforced . | . . . . Active Scanning Responses . | . . . . Cargo Convoy Interrupts . | . . . . Stealth | -11 -10 -9 -9 --------- Run | Jun Mat Mat Min Distress Signals 1 | . . 1 . Communications Jammed . | . . . . Distress Signals . | . . . . Times Spotted 39 | . 3 14 22 Peak Tracking Total 20 | . 2 7 20 Tactical Retreats . | . . . . Traps | -11 -10 -9 -9 ------- Run | Jun Mat Mat Min Traps Triggered 1 | . 1 . . Indirectly . | . . . . Trap Hack Attempts . | . . . . Triggered . | . . . . Disarmed . | . . . . Reprogrammed . | . . . . Reused . | . . . . Traps Extracted . | . . . . Installed . | . . . . Triggered . | . . . . Machines | -11 -10 -9 -9 ---------- Run | Jun Mat Mat Min Machines Disabled 1 | . . 1 . Max in Single Turn 1 | . . 1 . Machines Repaired . | . . . . Machines Sabotaged . | . . . . Overloaded Fab Kills . | . . . . Hacking | -11 -10 -9 -9 --------- Run | Jun Mat Mat Min Machines Accessed 1 | . . 1 . Terminals 1 | . . 1 . Fabricators . | . . . . Repair Stations . | . . . . Recycling Units . | . . . . Scanalyzers . | . . . . Garrison Access . | . . . . Total Hacks 3 | . . 3 . Successful 1 | . . 1 . Failed 2 | . . 2 . Catastrophic 1 | . . 1 . Database Lockouts . | . . . . Manual . | . . . . Terminals 3 | . . 3 . Fabricators . | . . . . Repair Stations . | . . . . Recycling Units . | . . . . Scanalyzers . | . . . . Garrison Access . | . . . . Terminal Hacks 1 | . . 1 . Reinforcement Status 1 | . . 1 . Fabricator Hacks . | . . . . Repair Station Hacks . | . . . . Recycling Unit Hacks . | . . . . Scanalyzer . | . . . . Garrison Access Hacks . | . . . . Unauthorized Hacks . | . . . . Terminals . | . . . . Fabricators . | . . . . Repair Stations . | . . . . Recycling Units . | . . . . Scanalyzers . | . . . . Garrison Access . | . . . . Data Cores Recovered . | . . . . Used . | . . . . Hacking Detections 1 | . . 1 . Full Trace Events . | . . . . Feedback Events . | . . . . Feedback Blocked . | . . . . Robot Schematics Acquired . | . . . . Robots Built . | . . . . Authchips . | . . . . Time . | . . . . Total Robot Build Rating . | . . . . Part Schematics Acquired . | . . . . Parts Built . | . . . . Authchips . | . . . . Time . | . . . . Total Part Build Rating . | . . . . Parts Repaired . | . . . . Time . | . . . . Parts Recycled . | . . . . Recycled Matter . | . . . . Retrieved Matter . | . . . . Retrieved Components . | . . . . Parts Scanalyzed . | . . . . Part Schematics Acquired . | . . . . Parts Damaged . | . . . . Bothacking | -11 -10 -9 -9 ------------ Run | Jun Mat Mat Min Used RIF Installer . | . . . . Robots Hacked . | . . . . Non-combat . | . . . . Combat . | . . . . Robot Hacks Applied . | . . . . Relay Couplers Released . | . . . . Fabnet Peak Effective % . | . . . . Robots Rewired . | . . . . Allies Hacked . | . . . . Hacks Repelled . | . . . . Allies | -11 -10 -9 -9 -------- Run | Jun Mat Mat Min Total Allies . | . . . . Largest Group . | . . . . Highest-Rated Group . | . . . . Highest-Rated Ally . | . . . . Total Orders . | . . . . Ally Attacks . | . . . . Total Damage . | . . . . Kills . | . . . . Allies Corrupted . | . . . . Allies Melted . | . . . . Intel | -11 -10 -9 -9 ------- Run | Jun Mat Mat Min Robot Analysis Total . | . . . . Derelict Logs Recovered . | . . . . Drone Launches . | . . . . Drone Recoveries . | . . . . Exploration | -11 -10 -9 -9 ------------- Run | Jun Mat Mat Min Turns Passed 482 | 78 167 198 39 Spaces Moved 415 | 57 181 144 33 Core 23 | 2 . . 21 Treads . | . . . . Legs . | . . . . Wheels 392 | 55 181 144 12 Hover . | . . . . Flight . | . . . . Fastest Speed 50 | 50 80 86 90 Average Speed 85 | 90 80 87 100 Slowest Speed 200 | 100 80 90 200 Overloaded Moves . | . . . . Propulsion Burnouts . | . . . . Robots Hopped . | . . . . Cave-ins Triggered . | . . . . Exploration Rate (%) 15 | 3 24 20 14 Regions Visited 3 Branch Regions 1 Pre-discovered Areas . | . . . . Known Exits Taken . | . . . . Unknown Exits Taken 3 | 1 1 1 . Scrap Searched 1 | . . . 1 Spaces Dug . | . . . . Terrain Destroyed 32 | . . 32 . Melee . | . . . . Projectile . | . . . . AOE 32 | . . 32 . Terrain Rammed . | . . . . Walls Destroyed . | . . . . Machines Disabled . | . . . . Actions | -11 -10 -9 -9 --------- Run | Jun Mat Mat Min Total 499 | 80 202 181 36 Wait 13 | . 13 . . Move 412 | 56 180 143 33 Hop . | . . . . Pick Up 19 | 10 4 5 . Fast Attach 1 | . . 1 . Attach 14 | 9 2 3 . Detach 3 | 3 . . . Swap 1 | . . 1 . Drop 3 | . 2 1 . Fire 33 | 2 1 27 3 Melee . | . . . . Ram . | . . . . Kick . | . . . . Crush . | . . . . Escape Stasis . | . . . . Rewire . | . . . . Trap . | . . . . Miscellaneous . | . . . . Route ------- -11/Junkyard -10/Materials -9/Materials -9/Mines History --------- Turn | Location | Event 8 | -11/Junkyard | Discovered new exit (range 15) 79 | -11/Junkyard | Entered Materials 243 | -10/Materials | Discovered new exit (range 4) 246 | -10/Materials | Entered another Materials area 246 | -9/Materials | Evolved 2 slots: Propulsion x1, Utility x1 427 | -9/Materials | Lost 3 parts (1n1u1w) 431 | -9/Materials | Discovered new exit (range 10) 444 | -9/Materials | Entered Mines 445 | -9/Mines | Assembled infested the area 464 | -9/Mines | Core integrity fell below 50% 482 | -9/Mines | Core integrity fell below 20% 483 | -9/Mines | Destroyed by D-53 Grenadier with Mini Grenade Launcher Last Messages --------------- 00465_ as-13968 destroyed. 00465_ as-31316 destroyed. 00465_ as-09638 destroyed. 00465_ as-13929 destroyed. 00467_ D-53 Grenadier destroyed. 00470_ The unstable cave ceiling collapses. 00471_ U-05 Engineer lays Concrete. 00471_ as-78832 destroyed. 00472_ The unstable cave ceiling collapses. 00472_ U-05 Engineer lays Concrete. 00473_ The unstable cave ceiling collapses. 00473_ U-05 Engineer lays Concrete. 00474_ The unstable cave ceiling collapses. 00474_ U-05 Engineer lays Concrete. 00475_ U-05 Engineer builds a Wall. 00475_ U-05 Engineer lays Concrete. 00476_ U-05 Engineer builds a Wall. 00479_ T-07 Excavator is excavating. 00481_ U-05 Engineer lays Concrete. 00483_ U-05 Engineer builds a Wall. Map ----- +----------------------------------------------------+ | | | | | | | | | | | | | | | ?????????????????????????????????????????????????? | | ?????????????????????????????????????????????????? | | ?????????????????????????????????????????????????? | | ?????????????????????????????????????????????????? | | ?????????????????????????????????????????????????? | | ?????????????????????????????????????????????????? | | ?????????????????????????????????????????????????? | | ?????????????????????????????????????????????????? | | ?????????????????????????????????????????????????? | | ?????????????????????????????????????????????????? | | ?????????????????????#####???????????????????????? | | ????????????????????## #???????## ???????????? | | ????????????????????# ##?????# ???????????? | | ???????????????????## #????# #???????????? | | ???????????????????# #???## #????????????? | | ????????????????????# #??## #????????????? | | ???????????????????## ##?## ###??????????? | | ???????????????????# #### ???????? | | ???????????????????## @ k ????????? | | ????????????????????### #??????????????? | | ??????????????????????## """ ##?##???????????? | | ???????????????????????##d""" ### ###?????????? | | ????????????????????????# """ # ##?#??????? | | ????????????????????????# # # ###??????# | | ????????????????????????## uk #??????? | | ?????????????????????????## ## ! ##?????? | | ?????????????????????????## #??????? | | ??????????????????????????# # #??????? | | ??????????????????????????## # # #??????? | | ???????????????????????????# # ##?????? | | ???????????????????????????### ### #?????? | | ?????????????????????????????###??# #?????? | | ???????????????????????????????#??? #?????? | | ???????????????????????????????????? ##?????? | | ????????????????????????????????????## ###??????? | | ?????????????????????????????????????##!#????????? | | ????????????????????????#?????????????#=#????????? | | ??????????????????????????????#???????#%#????????? | | ??????????????????????????????????????#!#????????? | | ??????????????????????????????????????#$#????????? | | ?????????????????????????????????????? "????????? | | ?????????????????????????????????????? ????????? | | ?????????????????????????????????????? % ????????? | +----------------------------------------------------+ Best States ------------- Heat Dissipation 50 Energy Generation 12 Energy Capacity 265 Matter Stores 279 Matter Capacity 300 Sight Range 16 Terrain Scan Range 16 Terrain Scan Density 10 Evasion (%) 44 Item Schematics ----------------- None Robot Schematics ------------------ None Fabricated ------------ Nothing Alien Tech Used ----------------- None Achievements -------------- Hunted Challenges ------------ None Game ------ Seed MasterDrainedDoomcannon Manual? 0 Play Time 00:12:30 Cumulative 30.0 hours Start 2023.06.25 @ 19:34:06 End 2023.06.25 @ 19:45:51 Sessions 1 Manual Loads 0 Difficulty Rogue Special Mode None Game No. 34 Rogue 34 Adventurer 0 Explorer 0 Win Type - Total 0 Types 0/0/0/0/0/0/0/0/0 Lore% 8 Gallery% 27 Achievement% 19 Wizard Run 0 Options --------- ASCII 0 Keyboard 0 Movement Mouse Keybinds 0 Fullscreen 1 Font 24/Smallcaps Map View 76x50 Tactical HUD 1 Map Filters NONE Filters NONE Steam 1 RUN: 50997db4-ce1b-4553-9571-3626541a02c0